[Event "10th Sharjah Cup Women 2020"]
[Site "Sharjah"]
[Date "2020.01.12"]
[Round "9.6"]
[White "Smirnova, Ekaterina"]
[Black "Rapport, Jovana"]
[Result "1/2-1/2"]
[ECO "D37"]
[WhiteElo "2249"]
[BlackElo "2333"]
[Annotator "ChessBase"]
[PlyCount "109"]
[EventDate "2020.01.04"]
[EventType "swiss"]
[EventCountry "UAE"]
[SourceTitle "playchess.com"]
[Source "ChessBase"]
[SourceQuality "1"]
[TimeControl "5400+30"]

1. d4 {[%emt 0:00:00]} Nf6 {[%emt 0:00:00]} 2. c4 {[%emt 0:00:00]} e6 {[%emt 0:00:00]} 3. Nf3 {[%emt 0:00:00]} d5 {[%emt 0:00:13]} 4. Nc3 {[%emt 0:00:00]} Nbd7 {[%emt 0:00:18]} 5. cxd5 {[%emt 0:02:47]} exd5 {[%emt 0:00:12]} 6. Bg5 {[%emt 0:00:11]} c6 {[%emt 0:00:30]} 7. e3 {[%emt 0:00:16]} Be7 {[%emt 0:00:06]} 8. Bd3 {[%emt 0:00:25]} Ne4 {[%emt 0:00:45]} 9. Bf4 {[%emt 0:01:11]} Ndf6 {[%emt 0:00:37]} 10. Qc2 {[%emt 0:01:44]} Bf5 {[%emt 0:03:44]} 11. O-O {[%emt 0:04:55]} O-O {[%emt 0:02:09]} 12. Ne5 {[%emt 0:08:54]} g6 {[%emt 0:00:37]} 13. f3 {[%emt 0:09:43]} Nd6 {[%emt 0:00:09]} 14. Rad1 {[%emt 0:00:39]} Bxd3 {[%emt 0:05:30]} 15. Qxd3 {[%emt 0:00:15]} Nh5 {[%emt 0:21:57]} 16. Bh6 {[%emt 0:01:15]} Ng7 {[%emt 0:00:28]} 17. e4 {[%emt 0:03:02]} f6 {[%emt 0:02:09]} 18. Ng4 {[%emt 0:00:38]} f5 {[%emt 0:03:46]} 19. Ne5 {[%emt 0:04:01]} fxe4 {[%emt 0:07:56]} 20. fxe4 {[%emt 0:00:05]} Rxf1+ {[%emt 0:00:05]} 21. Rxf1 {[%emt 0:00:05]} dxe4 {[%emt 0:02:09]} 22. Nxe4 {[%emt 0:09:56]} Ndf5 {[%emt 0:02:03]} 23. Bxg7 {[%emt 0:02:39]} Kxg7 {[%emt 0:02:32]} 24. Rxf5 {[%emt 0:02:05]} gxf5 {[%emt 0:00:37]} 25. Ng3 {[%emt 0:01:52]} Qd5 {[%emt 0:14:18]} 26. Nxf5+ {[%emt 0:00:43]} Kf8 {[%emt 0:00:33]} 27. Nxe7 {[%emt 0:03:01]} Kxe7 {[%emt 0:00:58]} 28. Qxh7+ {[%emt 0:00:05]} Kd8 {[%emt 0:04:03]} 29. Qh8+ {[%emt 0:02:32]} Kc7 30. Qxa8 {[%emt 0:02:16]} Qxd4+ {[%emt 0:00:22]} 31. Kf1 {[%emt 0:00:03]} Qxe5 {[%emt 0:00:26]} 32. Qxa7 {[%emt 0:03:12]} Qxh2 {[%emt 0:00:47]} 33. Qa5+ {[%emt 0:00:40]} Kc8 {[%emt 0:01:44]} 34. Qf5+ {[%emt 0:00:16]} Kc7 {[%emt 0:00:02]} 35. Kf2 {[%emt 0:04:01]} Qh8 {[%emt 0:00:36]} 36. Qa5+ {[%emt 0:01:35]} Kb8 {[%emt 0:02:44]} 37. Qc3 {[%emt 0:01:55]} Qh7 {[%emt 0:00:12]} 38. g4 {[%emt 0:03:56]} Qf7+ {[%emt 0:02:55]} 39. Kg3 {[%emt 0:00:11]} Qxa2 {[%emt 0:00:06]} 40. Qe5+ {[%emt 0:01:07]} Kc8 {[%emt 0:01:21]} 41. g5 {[%emt 0:00:32]} Qb3+ {[%emt 0:02:31]} 42. Kh4 {[%emt 0:00:29]} Qg8 {[%emt 0:04:22]} 43. Qf5+ {[%emt 0:03:54]} Kd8 {[%emt 0:00:07]} 44. Qf6+ {[%emt 0:01:53]} Ke8 {[%emt 0:01:36]} 45. g6 {[%emt 0:01:20]} Qd5 {[%emt 0:09:12]} 46. Qh8+ {[%emt 0:03:28]} Ke7 {[%emt 0:00:46]} 47. Qg7+ {[%emt 0:00:07]} Ke8 {[%emt 0:00:14]} 48. Qxb7 {[%emt 0:00:55]} Kf8 {[%emt 0:01:15]} 49. Qc7 {[%emt 0:04:09]} Qh1+ {[%emt 0:02:06]} 50. Kg4 {[%emt 0:01:01]} Qd1+ {[%emt 0:01:42]} 51. Kg5 {[%emt 0:01:10]} Qd5+ {[%emt 0:00:14]} 52. Kg4 {[%emt 0:07:02]} Qd1+ {[%emt 0:00:16]} 53. Kf5 {[%emt 0:02:19]} Qd3+ {[%emt 0:01:15]} 54. Kg5 {[%emt 0:02:10]} Qd5+ {[%emt 0:00:04]} 55. Kg4 {[%emt 0:01:07]} 1/2-1/2

[Event "10th Sharjah Cup Women 2020"]
[Site "Sharjah"]
[Date "2020.01.12"]
[Round "9.7"]
[White "Gevorgyan, Irina"]
[Black "Asatryan, Sona"]
[Result "1/2-1/2"]
[ECO "A06"]
[WhiteElo "2216"]
[BlackElo "2085"]
[Annotator "ChessBase"]
[PlyCount "48"]
[EventDate "2020.01.04"]
[EventType "swiss"]
[EventCountry "UAE"]
[SourceTitle "playchess.com"]
[Source "ChessBase"]
[SourceQuality "1"]
[TimeControl "5400+30"]

1. Nf3 {[%emt 0:00:00]} d5 {[%emt 0:00:00]} 2. e3 {[%emt 0:01:23]} Nf6 {[%emt 0:00:15]} 3. c4 {[%emt 0:00:09]} e6 {[%emt 0:00:30]} 4. Nc3 {[%emt 0:00:31]} Be7 {[%emt 0:01:51]} 5. d4 {[%emt 0:08:59]} O-O {[%emt 0:02:09]} 6. Qc2 {[%emt 0:01:51]} dxc4 {[%emt 0:04:42]} 7. Bxc4 {[%emt 0:00:17]} a6 {[%emt 0:00:41]} 8. O-O {[%emt 0:03:04]} b5 9. Bd3 {[%emt 0:00:24]} Bb7 {[%emt 0:08:05]} 10. Ne4 {[%emt 0:15:47]} Nxe4 {[%emt 0:03:58]} 11. Bxe4 {[%emt 0:00:07]} Bxe4 {[%emt 0:00:13]} 12. Qxe4 {[%emt 0:00:07]} Qd5 {[%emt 0:02:24]} 13. Qc2 {[%emt 0:04:07]} Rc8 {[%emt 0:04:50]} 14. e4 {[%emt 0:09:43]} Qb7 {[%emt 0:01:38]} 15. Rd1 {[%emt 0:03:29]} Nd7 {[%emt 0:01:50]} 16. d5 {[%emt 0:02:48]} exd5 {[%emt 0:11:57]} 17. exd5 {[%emt 0:04:55]} Nf6 {[%emt 0:06:22]} 18. Ne5 {[%emt 0:08:23]} Bd6 {[%emt 0:01:08]} 19. Nc6 {[%emt 0:00:21]} Re8 {[%emt 0:01:09]} 20. Bg5 {[%emt 0:01:52]} Ng4 {[%emt 0:03:31]} 21. h3 {[%emt 0:02:18]} Ne5 {[%emt 0:01:45]} 22. Be3 {[%emt 0:00:41]} Nxc6 {[%emt 0:05:22]} 23. dxc6 {[%emt 0:00:14]} Qc8 {[%emt 0:00:58]} 24. Bc5 {[%emt 0:02:22]} Qe6 1/2-1/2

[Event "10th Sharjah Cup Women 2020"]
[Site "Sharjah"]
[Date "2020.01.12"]
[Round "9.8"]
[White "Kubicka, Anna"]
[Black "Pujari, Rucha"]
[Result "1/2-1/2"]
[ECO "C42"]
[WhiteElo "2258"]
[BlackElo "2187"]
[Annotator "ChessBase"]
[PlyCount "118"]
[EventDate "2020.01.04"]
[EventType "swiss"]
[EventCountry "UAE"]
[SourceTitle "playchess.com"]
[Source "ChessBase"]
[SourceQuality "1"]
[TimeControl "5400+30"]

1. e4 {[%emt 0:00:00]} e5 {[%emt 0:01:32]} 2. Nf3 {[%emt 0:00:00]} Nf6 {[%emt 0:00:26]} 3. Nxe5 {[%emt 0:00:00]} d6 {[%emt 0:00:06]} 4. Nf3 {[%emt 0:00:00]} Nxe4 {[%emt 0:00:09]} 5. Nc3 {[%emt 0:00:18]} Nxc3 {[%emt 0:00:51]} 6. dxc3 {[%emt 0:00:05]} Be7 {[%emt 0:01:02]} 7. Bf4 {[%emt 0:00:26]} Nc6 {[%emt 0:01:07]} 8. Qd2 {[%emt 0:00:28]} Bf5 {[%emt 0:00:35]} 9. h3 {[%emt 0:06:04]} Qd7 {[%emt 0:05:32]} 10. Be2 {[%emt 0:00:58]} a6 {[%emt 0:01:23]} 11. O-O-O {[%emt 0:02:09]} O-O-O {[%emt 0:08:42]} 12. Rhe1 {[%emt 0:07:24]} Rhe8 {[%emt 0:02:28]} 13. Nd4 {[%emt 0:00:49]} Nxd4 {[%emt 0:03:08]} 14. cxd4 {[%emt 0:04:49]} Qa4 {[%emt 0:07:22]} 15. Kb1 {[%emt 0:03:30]} Bf6 {[%emt 0:03:33]} 16. b3 {[%emt 0:04:21]} Qc6 {[%emt 0:07:47]} 17. Bf3 {[%emt 0:03:35]} d5 {[%emt 0:09:05]} 18. g4 {[%emt 0:16:54]} Bg6 {[%emt 0:09:10]} 19. g5 {[%emt 0:05:31]} Be7 {[%emt 0:00:24]} 20. Re3 {[%emt 0:04:41]} Bd6 {[%emt 0:04:36]} 21. Be5 {[%emt 0:04:56]} Bxe5 {[%emt 0:11:54]} 22. dxe5 {[%emt 0:01:28]} Kb8 {[%emt 0:01:23]} 23. Kb2 {[%emt 0:06:02]} Qb6 {[%emt 0:01:38]} 24. c3 {[%emt 0:05:56]} c6 {[%emt 0:06:12]} 25. Re2 {[%emt 0:09:05]} Be4 {[%emt 0:04:46]} 26. Bg4 {[%emt 0:00:56]} c5 {[%emt 0:05:10]} 27. Qf4 {[%emt 0:03:02]} Qc7 {[%emt 0:00:02]} 28. f3 {[%emt 0:01:25]} Bg6 {[%emt 0:00:06]} 29. h4 {[%emt 0:01:13]} c4 {[%emt 0:00:28]} 30. Bf5 {[%emt 0:03:40]} Bxf5 {[%emt 0:00:02]} 31. Qxf5 {[%emt 0:00:04]} Re6 {[%emt 0:00:04]} 32. Rd4 {[%emt 0:01:07]} g6 {[%emt 0:00:02]} 33. Qf4 {[%emt 0:03:18]} Rb6 {[%emt 0:00:02]} 34. Qd2 {[%emt 0:00:29]} Qc5 {[%emt 0:02:04]} 35. Qd1 {[%emt 0:01:20]} Rb5 {[%emt 0:01:31]} 36. b4 {[%emt 0:01:18]} a5 {[%emt 0:02:16]} 37. a3 {[%emt 0:00:04]} axb4 {[%emt 0:00:18]} 38. axb4 {[%emt 0:00:08]} Kc7 {[%emt 0:01:25]} 39. Qa4 {[%emt 0:00:47]} Qc6 {[%emt 0:00:29]} 40. Kc1 {[%emt 0:00:34]} Qe8 {[%emt 0:00:21]} 41. Ra2 {[%emt 0:00:29]} Kc6 {[%emt 0:00:45]} 42. f4 {[%emt 0:00:08]} Qe6 {[%emt 0:00:26]} 43. Qd1 {[%emt 0:00:48]} Qh3 {[%emt 0:00:21]} 44. Rc2 {[%emt 0:00:47]} Rd7 {[%emt 0:00:38]} 45. Qe1 {[%emt 0:00:29]} Rb6 {[%emt 0:00:23]} 46. Ra2 {[%emt 0:00:10]} Kc7 {[%emt 0:00:43]} 47. Ra5 {[%emt 0:00:35]} Ra6 {[%emt 0:00:23]} 48. Rxa6 {[%emt 0:00:57]} bxa6 {[%emt 0:00:01]} 49. Kc2 {[%emt 0:00:21]} Qh2+ {[%emt 0:00:44]} 50. Qd2 {[%emt 0:00:41]} Qxh4 {[%emt 0:00:50]} 51. Rxd5 {[%emt 0:00:24]} Rxd5 {[%emt 0:00:19]} 52. Qxd5 {[%emt 0:00:02]} Qxf4 {[%emt 0:00:19]} 53. Qd6+ {[%emt 0:00:09]} Kb7 {[%emt 0:00:33]} 54. Qd7+ {[%emt 0:00:08]} Kb8 {[%emt 0:00:44]} 55. Qd8+ {[%emt 0:00:15]} Kb7 {[%emt 0:00:20]} 56. Qd7+ {[%emt 0:00:18]} Kb8 {[%emt 0:00:12]} 57. Qd6+ {[%emt 0:00:19]} Kb7 {[%emt 0:00:04]} 58. Qd5+ {[%emt 0:00:45]} Kb8 {[%emt 0:00:19]} 59. Qd8+ {[%emt 0:01:07]} Kb7 {[%emt 0:00:03]} 1/2-1/2

[Event "10th Sharjah Cup Women 2020"]
[Site "Sharjah"]
[Date "2020.01.12"]
[Round "9.9"]
[White "Samaganova, Alexandra"]
[Black "Gong, Qianyun"]
[Result "0-1"]
[ECO "A35"]
[WhiteElo "2008"]
[BlackElo "2371"]
[Annotator "ChessBase"]
[PlyCount "98"]
[EventDate "2020.01.04"]
[EventType "swiss"]
[EventCountry "UAE"]
[SourceTitle "playchess.com"]
[Source "ChessBase"]
[SourceQuality "1"]
[TimeControl "5400+30"]

1. c4 {[%emt 0:00:00]} c5 {[%emt 0:00:00]} 2. Nc3 {[%emt 0:00:00]} Nc6 {[%emt 0:00:00]} 3. Nf3 {[%emt 0:01:30]} d6 {[%emt 0:02:54]} 4. e3 {[%emt 0:03:28]} e5 {[%emt 0:05:52]} 5. d4 {[%emt 0:04:05]} cxd4 {[%emt 0:06:34]} 6. exd4 {[%emt 0:00:19]} Bg4 {[%emt 0:00:10]} 7. d5 {[%emt 0:10:37]} Nd4 {[%emt 0:01:51]} 8. Be2 {[%emt 0:01:21]} Nxe2 {[%emt 0:01:24]} 9. Qxe2 {[%emt 0:01:16]} Be7 {[%emt 0:01:03]} 10. h3 {[%emt 0:12:26]} Bh5 {[%emt 0:01:02]} 11. g4 {[%emt 0:05:02]} Bg6 {[%emt 0:00:05]} 12. Ne4 {[%emt 0:00:17]} Nf6 {[%emt 0:04:27]} 13. Ng3 {[%emt 0:07:27]} h5 {[%emt 0:14:37]} 14. Nh4 {[%emt 0:10:28]} hxg4 {[%emt 0:00:38]} 15. Nxg6 {[%emt 0:00:41]} fxg6 {[%emt 0:00:04]} 16. hxg4 {[%emt 0:00:35]} Rxh1+ {[%emt 0:01:13]} 17. Nxh1 {[%emt 0:00:02]} Qd7 {[%emt 0:00:04]} 18. f3 {[%emt 0:03:16]} Kf7 {[%emt 0:12:08]} 19. Be3 {[%emt 0:07:41]} Rc8 {[%emt 0:02:24]} 20. Nf2 {[%emt 0:05:51]} a6 {[%emt 0:04:28]} 21. b3 {[%emt 0:03:01]} b5 {[%emt 0:02:12]} 22. Rc1 {[%emt 0:01:33]} bxc4 {[%emt 0:00:14]} 23. bxc4 {[%emt 0:00:13]} Qd8 {[%emt 0:01:15]} 24. Qd2 {[%emt 0:05:42]} Qh8 {[%emt 0:03:29]} 25. c5 {[%emt 0:06:50]} Qh2 {[%emt 0:07:50]} 26. c6 {[%emt 0:02:19]} Qg2 {[%emt 0:00:15]} 27. g5 {[%emt 0:04:51]} Nh5 {[%emt 0:05:00]} 28. Ne4 {[%emt 0:01:38]} Qh3 {[%emt 0:00:02]} 29. Qe2 {[%emt 0:00:48]} Ng3 {[%emt 0:00:31]} 30. Nxg3 {[%emt 0:00:42]} Qxg3+ {[%emt 0:00:00]} 31. Qf2 {[%emt 0:00:21]} Qh3 {[%emt 0:00:07]} 32. Kd2 {[%emt 0:01:09]} Qf5 {[%emt 0:00:39]} 33. f4 {[%emt 0:00:23]} e4 {[%emt 0:00:28]} 34. Ke1 {[%emt 0:00:34]} Qxd5 {[%emt 0:00:10]} 35. Qc2 {[%emt 0:00:15]} Bd8 {[%emt 0:05:45]} 36. Qa4 {[%emt 0:00:41]} Qa5+ {[%emt 0:03:17]} 37. Qxa5 {[%emt 0:00:02]} Bxa5+ {[%emt 0:00:01]} 38. Ke2 {[%emt 0:00:19]} Bc7 {[%emt 0:04:34]} 39. Rc4 {[%emt 0:01:11]} d5 {[%emt 0:00:05]} 40. Rb4 {[%emt 0:00:31]} Ke6 {[%emt 0:09:23]} 41. Rb7 {[%emt 0:00:13]} a5 {[%emt 0:00:06]} 42. Ra7 {[%emt 0:00:36]} Kf5 {[%emt 0:00:43]} 43. Rb7 {[%emt 0:00:39]} Kg4 {[%emt 0:01:49]} 44. Rb5 {[%emt 0:00:35]} Bxf4 {[%emt 0:01:20]} 45. Rxd5 {[%emt 0:00:30]} Rxc6 {[%emt 0:00:08]} 46. Bd4 {[%emt 0:00:31]} Rc2+ {[%emt 0:00:15]} 47. Kd1 {[%emt 0:00:30]} Rd2+ {[%emt 0:00:22]} 48. Ke1 {[%emt 0:00:05]} e3 {[%emt 0:00:09]} 49. Rd8 {[%emt 0:00:52]} Bg3+ {[%emt 0:00:10]} 0-1

[Event "10th Sharjah Cup Women 2020"]
[Site "Sharjah"]
[Date "2020.01.12"]
[Round "9.10"]
[White "Radeva, Viktoria"]
[Black "Boshra, Alshaeby"]
[Result "1-0"]
[ECO "B38"]
[WhiteElo "2338"]
[BlackElo "1979"]
[Annotator "ChessBase"]
[PlyCount "73"]
[EventDate "2020.01.04"]
[EventType "swiss"]
[EventCountry "UAE"]
[SourceTitle "playchess.com"]
[Source "ChessBase"]
[SourceQuality "1"]
[TimeControl "5400+30"]

1. e4 {[%emt 0:00:00]} c5 {[%emt 0:00:00]} 2. Nf3 {[%emt 0:00:00]} g6 {[%emt 0:00:00]} 3. c4 {[%emt 0:00:00]} Bg7 {[%emt 0:00:10]} 4. d4 {[%emt 0:00:00]} cxd4 {[%emt 0:00:04]} 5. Nxd4 {[%emt 0:00:00]} Nc6 {[%emt 0:00:05]} 6. Be3 {[%emt 0:00:00]} Nf6 {[%emt 0:00:04]} 7. Nc3 {[%emt 0:00:01]} O-O {[%emt 0:00:14]} 8. Be2 {[%emt 0:00:11]} b6 {[%emt 0:00:45]} 9. O-O {[%emt 0:01:05]} Bb7 {[%emt 0:00:06]} 10. f3 {[%emt 0:01:54]} e6 {[%emt 0:00:23]} 11. Ndb5 {[%emt 0:08:41]} d5 {[%emt 0:00:07]} 12. exd5 {[%emt 0:08:11]} exd5 {[%emt 0:00:05]} 13. cxd5 {[%emt 0:03:44]} Nb4 {[%emt 0:00:06]} 14. d6 {[%emt 0:02:07]} Nfd5 {[%emt 0:00:05]} 15. Bf2 {[%emt 0:05:14]} Qg5 {[%emt 0:00:21]} 16. Ne4 {[%emt 0:06:21]} Qf4 {[%emt 0:14:25]} 17. Qb3 {[%emt 0:08:51]} a5 {[%emt 0:44:48]} 18. a4 {[%emt 0:23:58]} f5 {[%emt 0:07:00]} 19. Nec3 {[%emt 0:12:03]} Kh8 {[%emt 0:00:14]} 20. Qc4 {[%emt 0:01:04]} Qg5 {[%emt 0:12:52]} 21. h4 {[%emt 0:06:54]} Qh6 {[%emt 0:05:07]} 22. Nxd5 {[%emt 0:01:33]} Nxd5 {[%emt 0:01:07]} 23. Nc7 {[%emt 0:02:22]} Rac8 {[%emt 0:01:32]} 24. Rfe1 {[%emt 0:04:42]} g5 {[%emt 0:02:32]} 25. Bd4 {[%emt 0:02:07]} gxh4 {[%emt 0:02:59]} 26. Bf1 {[%emt 0:00:56]} h3 {[%emt 0:02:39]} 27. d7 {[%emt 0:00:48]} Rxc7 {[%emt 0:00:42]} 28. Re8 {[%emt 0:00:03]} Kg8 {[%emt 0:04:51]} 29. d8=Q {[%emt 0:00:28]} Rxc4 {[%emt 0:00:10]} 30. Rxf8+ {[%emt 0:00:06]} Bxf8 {[%emt 0:00:04]} 31. Bxc4 {[%emt 0:00:14]} Qe6 {[%emt 0:00:44]} 32. Qg5+ {[%emt 0:00:43]} Kf7 {[%emt 0:00:29]} 33. Qh5+ {[%emt 0:00:20]} Kg8 {[%emt 0:00:43]} 34. Qxh3 {[%emt 0:00:47]} Bd6 {[%emt 0:00:34]} 35. Qh4 {[%emt 0:00:31]} Be7 {[%emt 0:00:13]} 36. Qg3+ {[%emt 0:00:07]} Kf8 {[%emt 0:00:37]} 37. Qb8+ {[%emt 0:01:40]} 1-0

[Event "10th Sharjah Cup Women 2020"]
[Site "Sharjah"]
[Date "2020.01.12"]
[Round "9.11"]
[White "Dhyana Patel"]
[Black "Heinemann, Josefine"]
[Result "0-1"]
[ECO "B53"]
[WhiteElo "1969"]
[BlackElo "2317"]
[Annotator "ChessBase"]
[PlyCount "118"]
[EventDate "2020.01.04"]
[EventType "swiss"]
[EventCountry "UAE"]
[SourceTitle "playchess.com"]
[Source "ChessBase"]
[SourceQuality "1"]
[TimeControl "5400+30"]

1. e4 {[%emt 0:00:00]} c5 {[%emt 0:00:00]} 2. Nf3 {[%emt 0:00:00]} d6 {[%emt 0:00:00]} 3. d4 {[%emt 0:00:00]} cxd4 {[%emt 0:00:00]} 4. Qxd4 {[%emt 0:00:02]} Nf6 {[%emt 0:00:24]} 5. Bb5+ {[%emt 0:00:12]} Bd7 {[%emt 0:00:07]} 6. Bxd7+ {[%emt 0:00:06]} Qxd7 {[%emt 0:00:05]} 7. O-O {[%emt 0:00:23]} Nc6 {[%emt 0:00:59]} 8. Qd3 {[%emt 0:00:34]} g6 {[%emt 0:00:58]} 9. c4 {[%emt 0:00:58]} Bg7 {[%emt 0:00:11]} 10. Nc3 {[%emt 0:00:21]} O-O {[%emt 0:01:42]} 11. h3 {[%emt 0:02:25]} Rac8 {[%emt 0:03:52]} 12. Bg5 {[%emt 0:03:13]} Nb4 {[%emt 0:04:48]} 13. Qe2 {[%emt 0:00:23]} Qe6 {[%emt 0:02:20]} 14. b3 {[%emt 0:02:31]} h6 {[%emt 0:02:39]} 15. Bf4 {[%emt 0:03:21]} Nd7 {[%emt 0:06:27]} 16. Rac1 {[%emt 0:01:15]} Nc5 {[%emt 0:03:31]} 17. Rfd1 {[%emt 0:02:25]} g5 {[%emt 0:04:03]} 18. Bh2 {[%emt 0:02:56]} Nc6 {[%emt 0:05:39]} 19. Re1 {[%emt 0:03:51]} Nb4 {[%emt 0:12:20]} 20. Red1 {[%emt 0:00:26]} Qg6 {[%emt 0:01:42]} 21. Nd5 {[%emt 0:02:14]} Nxd5 {[%emt 0:00:06]} 22. exd5 {[%emt 0:00:06]} Rfe8 {[%emt 0:00:19]} 23. Qc2 {[%emt 0:02:26]} Qxc2 {[%emt 0:02:40]} 24. Rxc2 {[%emt 0:00:02]} a6 {[%emt 0:01:23]} 25. Nd4 {[%emt 0:01:27]} Bxd4 {[%emt 0:01:03]} 26. Rxd4 {[%emt 0:00:08]} b5 {[%emt 0:00:09]} 27. f4 {[%emt 0:01:02]} f6 {[%emt 0:01:46]} 28. fxg5 {[%emt 0:01:25]} hxg5 {[%emt 0:00:05]} 29. h4 {[%emt 0:00:29]} gxh4 {[%emt 0:00:22]} 30. Rxh4 {[%emt 0:00:22]} Kf7 {[%emt 0:00:16]} 31. Bg3 {[%emt 0:03:42]} Rh8 {[%emt 0:01:12]} 32. Rxh8 {[%emt 0:01:31]} Rxh8 {[%emt 0:00:07]} 33. b4 {[%emt 0:03:32]} Nd3 {[%emt 0:03:14]} 34. a3 {[%emt 0:08:38]} Rc8 {[%emt 0:00:59]} 35. c5 {[%emt 0:01:45]} dxc5 {[%emt 0:00:11]} 36. bxc5 {[%emt 0:00:05]} Rxc5 {[%emt 0:00:07]} 37. Rxc5 {[%emt 0:00:04]} Nxc5 {[%emt 0:00:04]} 38. Kf1 {[%emt 0:00:57]} Ne4 {[%emt 0:02:42]} 39. Be1 {[%emt 0:01:14]} f5 {[%emt 0:00:09]} 40. Bb4 {[%emt 0:00:33]} Nf6 {[%emt 0:00:21]} 41. d6 {[%emt 0:00:10]} e5 {[%emt 0:00:17]} 42. Ke2 {[%emt 0:00:47]} Ke6 {[%emt 0:00:05]} 43. Kf3 {[%emt 0:01:22]} Ne4 {[%emt 0:01:50]} 44. g4 {[%emt 0:00:53]} Nxd6 {[%emt 0:00:16]} 45. gxf5+ {[%emt 0:00:37]} Nxf5 {[%emt 0:00:05]} 46. Ke4 {[%emt 0:00:26]} Nd6+ {[%emt 0:00:04]} 47. Kd3 {[%emt 0:01:35]} Kd5 {[%emt 0:00:19]} 48. Kc3 {[%emt 0:00:42]} Nc4 {[%emt 0:00:51]} 49. Kb3 {[%emt 0:00:41]} Nb6 {[%emt 0:01:56]} 50. Ba5 {[%emt 0:00:37]} Na4 {[%emt 0:00:13]} 51. Be1 {[%emt 0:00:53]} Kd4 {[%emt 0:02:24]} 52. Kb4 {[%emt 0:00:42]} e4 {[%emt 0:00:21]} 53. Ka5 {[%emt 0:00:18]} Nc5 {[%emt 0:00:49]} 54. Kb6 {[%emt 0:00:40]} e3 {[%emt 0:01:00]} 55. Bh4 {[%emt 0:02:46]} Kc4 {[%emt 0:01:36]} 56. Ka5 {[%emt 0:01:23]} e2 {[%emt 0:00:13]} 57. Kb6 {[%emt 0:00:12]} Nd3 {[%emt 0:00:14]} 58. Kxa6 {[%emt 0:00:07]} e1=Q {[%emt 0:00:08]} 59. Bxe1 {[%emt 0:00:02]} Nxe1 {[%emt 0:00:05]} 0-1

[Event "10th Sharjah Cup Women 2020"]
[Site "Sharjah"]
[Date "2020.01.12"]
[Round "9.12"]
[White "Soyunlu, Narmin"]
[Black "Bykova, Anastasia"]
[Result "0-1"]
[ECO "A06"]
[WhiteElo "2020"]
[BlackElo "2247"]
[Annotator "ChessBase"]
[PlyCount "92"]
[EventDate "2020.01.04"]
[EventType "swiss"]
[EventCountry "UAE"]
[SourceTitle "playchess.com"]
[Source "ChessBase"]
[SourceQuality "1"]
[TimeControl "5400+30"]

1. Nf3 {[%emt 0:00:00]} d5 {[%emt 0:00:00]} 2. c4 {[%emt 0:00:00]} c6 {[%emt 0:00:00]} 3. g3 {[%emt 0:00:00]} Nf6 {[%emt 0:00:00]} 4. Bg2 {[%emt 0:00:00]} Bg4 {[%emt 0:00:21]} 5. Ne5 {[%emt 0:00:07]} Bf5 {[%emt 0:00:37]} 6. cxd5 {[%emt 0:00:20]} cxd5 {[%emt 0:00:20]} 7. Qa4+ {[%emt 0:00:56]} Nc6 {[%emt 0:01:38]} 8. Nc3 {[%emt 0:05:06]} Rc8 {[%emt 0:01:29]} 9. d4 {[%emt 0:15:34]} e6 {[%emt 0:03:48]} 10. Nxc6 {[%emt 0:07:02]} bxc6 {[%emt 0:00:17]} 11. Qxa7 {[%emt 0:00:21]} Bd6 {[%emt 0:06:12]} 12. Qa4 {[%emt 0:04:27]} O-O {[%emt 0:00:43]} 13. O-O {[%emt 0:00:13]} Qb6 {[%emt 0:00:17]} 14. Qd1 {[%emt 0:04:39]} e5 {[%emt 0:00:28]} 15. e3 {[%emt 0:04:11]} Bg4 {[%emt 0:06:47]} 16. f3 {[%emt 0:07:41]} Bh5 {[%emt 0:02:31]} 17. a3 {[%emt 0:03:53]} exd4 {[%emt 0:15:53]} 18. exd4 {[%emt 0:02:32]} Ra8 {[%emt 0:00:25]} 19. Kh1 {[%emt 0:09:48]} Rfe8 {[%emt 0:07:11]} 20. b4 {[%emt 0:05:15]} Qa6 {[%emt 0:01:22]} 21. Ra2 {[%emt 0:11:15]} Bg6 {[%emt 0:06:47]} 22. Bg5 {[%emt 0:02:02]} Nd7 {[%emt 0:00:35]} 23. Bf4 {[%emt 0:07:56]} Bxf4 {[%emt 0:02:06]} 24. gxf4 {[%emt 0:00:01]} Re3 {[%emt 0:05:14]} 25. b5 {[%emt 0:02:05]} Qb6 {[%emt 0:01:06]} 26. bxc6 {[%emt 0:02:11]} Qxc6 {[%emt 0:00:29]} 27. Ne2 {[%emt 0:03:41]} Bd3 {[%emt 0:07:54]} 28. Rf2 {[%emt 0:01:34]} Rae8 {[%emt 0:00:54]} 29. Rb2 {[%emt 0:01:01]} Qa6 {[%emt 0:03:22]} 30. Bf1 {[%emt 0:00:18]} h5 {[%emt 0:00:21]} 31. Nc1 {[%emt 0:00:40]} Bxf1 {[%emt 0:02:37]} 32. Rxf1 {[%emt 0:00:01]} Qd6 {[%emt 0:05:17]} 33. Nd3 {[%emt 0:00:42]} Qxa3 {[%emt 0:00:16]} 34. Rb3 {[%emt 0:00:29]} Qa4 {[%emt 0:08:26]} 35. Nc5 {[%emt 0:00:14]} Nxc5 {[%emt 0:00:15]} 36. Rxe3 {[%emt 0:00:08]} Rxe3 {[%emt 0:00:15]} 37. dxc5 {[%emt 0:00:17]} Qc4 {[%emt 0:01:49]} 38. Qb1 {[%emt 0:01:45]} Qxc5 {[%emt 0:04:46]} 39. f5 {[%emt 0:00:02]} Qd6 {[%emt 0:02:23]} 40. f4 {[%emt 0:00:59]} d4 {[%emt 0:00:25]} 41. Qc1 {[%emt 0:00:31]} Qd5+ {[%emt 0:00:22]} 42. Kg1 {[%emt 0:00:09]} Qxf5 {[%emt 0:00:24]} 43. Rf2 {[%emt 0:00:36]} Qe4 {[%emt 0:01:40]} 44. Qc4 {[%emt 0:00:45]} Re1+ {[%emt 0:00:26]} 45. Rf1 {[%emt 0:00:01]} Qe3+ {[%emt 0:00:31]} 46. Kg2 {[%emt 0:00:04]} Re2+ {[%emt 0:00:09]} 0-1